bitfinex-derivatives/quotes_ETHF0:USTF0_20250224
["timestamp","ask_amount","ask_price","bid_price","bid_amount"]
[1740381575537,0.73234488,2726.1,2725.9,0.5349]
[1740381575937,0.73234488,2726.4,2725.9,0.5349]
[1740381576545,2.405,2726.5,2725.9,0.5349]
[1740381577343,3.2078,2726.5,2725.9,0.5349]
[1740381577939,3.94014488,2726.5,2725.9,0.5349]
[1740381578745,0.73234488,2726.5,2725.9,0.5349]
[1740381579134,1.90564947,2726.6,2725.9,0.5349]
[1740381581347,1.90564947,2726.6,2725.9,41.3349]
[1740381588251,0.73784947,2726.6,2725.9,41.3349]
[1740381588949,0.00550459,2726.6,2725.9,41.3349]
[1740381590352,0.54650459,2726.6,2725.9,41.3349]
[1740381594359,3.2078,2726.1,2725.7,0.5618]
[1740381594556,1.7222,2726.0,2725.7,0.5618]
[1740381595054,2.45454488,2726.0,2725.7,0.5618]
[1740381595353,3.2078,2725.8,2725.4,0.5446]
[1740381595550,3.2078,2725.5,2725.3,0.00550459]
[1740381596351,0.5488,2725.4,2725.3,0.73927459]
[1740381596550,4.296,2725.5,2725.4,0.73374]
[1740381596754,6.7,2725.5,2725.4,0.73374]
[1740381597155,7.43234488,2725.5,2725.4,0.73374]
[1740381597551,7.43234488,2725.5,2725.3,0.00550459]
[1740381597856,0.5488,2725.4,2725.3,0.00550459]
[1740381598057,1.28114488,2725.4,2725.3,0.00550459]
[1740381598947,1.28114488,2725.4,2725.3,0.73927459]
[1740381599152,1.28114488,2725.4,2725.3,0.00550459]
[1740381599352,1.34076883,2725.4,2725.3,0.00550459]
[1740381599859,1.28114488,2725.4,2725.3,0.00550459]
[1740381600159,1.3407652,2725.4,2725.3,0.00550459]
[1740381601253,7.3407652,2725.4,2724.6,1.26775]
[1740381601460,3.2078,2724.9,2724.6,1.26775]
[1740381601760,5.6128,2724.9,2724.8,0.73391]
[1740381602858,5.6128,2724.9,2724.7,0.73391]
[1740381603157,5.6128,2724.9,2724.6,0.73395]
[1740381603357,6.1652,2724.9,2724.5,1.28515]
[1740381603557,0.5766,2724.8,2724.5,1.28515]
[1740381603954,0.5766,2724.8,2724.1,0.5285]
[1740381604160,3.2078,2724.2,2723.7,0.5715]
[1740381604360,3.2078,2724.2,2723.8,0.5635]
[1740381604562,3.2078,2724.2,2722.5,20.348]
[1740381604563,3.2078,2723.9,2722.9,3.50697454]
[1740381604764,5.6128,2723.9,2723.0,1.135]
[1740381604962,0.00550459,2723.7,2723.0,1.135]
[1740381605160,0.00550459,2723.7,2723.0,2.97095]
[1740381605557,0.00550459,2723.7,2723.6,0.73423]
[1740381605767,3.2078,2724.7,2723.6,3.2078]
[1740381606061,0.05959823,2724.6,2724.5,0.73396]
[1740381606262,3.2078,2724.7,2724.2,1.83515]
[1740381606459,2.406,2724.6,2724.5,0.73396]
[1740381608161,2.406,2724.6,2724.3,0.5754]
[1740381608462,2.406,2724.6,2724.5,0.73399]
[1740381610563,0.00550459,2724.8,2724.7,0.73393]
[1740381611768,4.59e-06,2724.8,2724.7,0.73393]
[1740381611961,4.59e-06,2724.8,2724.7,41.53393]
[1740381612361,4.59e-06,2724.8,2724.7,0.73393]
[1740381613764,4.59e-06,2724.8,2724.7,3.94173]
[1740381615470,4.59e-06,2724.8,2724.7,0.73393]
[1740381616270,2.42800459,2724.8,2724.3,4.3105]
[1740381616471,2.42800459,2724.8,2724.3,1.1027]
[1740381616771,3.2078,2724.6,2724.3,1.1027]
[1740381617168,3.2078,2724.6,2724.0,3.2078]
[1740381617371,3.2078,2724.3,2724.2,0.73404]
[1740381617674,5.6368,2724.3,2724.2,0.73404]
[1740381621977,2.429,2724.3,2724.2,0.73404]
[1740381622673,3.2078,2724.6,2724.5,0.73399]
[1740381622976,2.425,2724.7,2723.8,0.5445]
[1740381623183,5.6328,2724.7,2723.8,0.5445]
[1740381623678,0.73005342,2724.6,2723.9,40.8]
[1740381624180,3.2078,2724.4,2723.8,0.5445]
[1740381624582,3.7926,2724.4,2723.8,0.5445]
[1740381625985,2.426,2724.3,2723.8,0.5445]
[1740381626484,3.15605342,2724.3,2723.8,0.5445]
[1740381629586,6.36385342,2724.3,2723.8,0.5445]
[1740381630185,3.93785342,2724.2,2723.5,0.5389]
[1740381630385,3.2078,2723.9,2723.6,0.5774]
[1740381630590,5.6318,2723.9,2723.6,0.5774]
[1740381630785,0.5278,2723.8,2723.6,0.5774]
[1740381630985,1.25785342,2723.8,2723.6,0.5774]
[1740381632682,0.73005342,2723.8,2723.6,0.5774]
[1740381632888,5.6318,2723.9,2723.6,0.5774]
[1740381637787,2.424,2723.9,2723.6,0.5774]
[1740381637990,0.73004775,2724.2,2723.6,0.5774]
[1740381638195,3.15104775,2724.2,2723.6,0.5774]
[1740381638489,2.421,2724.2,2723.6,0.5774]
[1740381638691,3.2078,2724.3,2723.7,3.2078]
[1740381638884,5.6278,2724.3,2723.7,3.2078]
[1740381639488,1.0999,2724.6,2723.6,0.5774]
[1740381639489,0.5674,2724.6,2724.1,3.2078]
[1740381639686,3.93795337,2725.0,2724.5,3.2078]
[1740381639892,0.73015337,2725.0,2724.2,4.355]
[1740381640187,5.6388,2724.7,2724.2,2.98236]
[1740381640391,6.2115,2724.7,2724.6,0.73396]
[1740381640783,6.94165337,2724.7,2724.6,0.73396]
[1740381641591,6.94065337,2724.7,2724.6,0.73396]
[1740381646189,6.94065337,2724.7,2724.2,1.1472]
[1740381646785,0.73015337,2724.7,2724.2,4.355]
[1740381646983,2.987,2728.1,2724.5,3.2078]
[1740381646984,3.37e-06,2724.6,2724.5,3.2078]
[1740381647189,3.2078,2725.3,2724.5,3.2078]
[1740381647190,3.20780337,2725.6,2725.5,0.73372]
[1740381647497,3.37e-06,2725.6,2725.5,0.73372]
[1740381647995,1.6668,2725.7,2725.4,0.5389]
[1740381648294,2.431,2726.1,2725.5,1.8343]
[1740381648590,2.431,2726.1,2725.4,0.5389]
[1740381648591,3.2078,2726.3,2726.2,0.73353]
[1740381648794,3.26725881,2726.3,2726.1,0.73355]
[1740381649097,0.05945881,2726.2,2726.1,0.73355]
[1740381650693,3.2078,2726.3,2726.1,0.73355]
[1740381650895,0.05942478,2726.2,2726.1,0.73355]
[1740381651090,0.05942478,2726.2,2725.4,0.5389]
[1740381651293,3.2078,2726.0,2725.5,1.83429]
[1740381651500,5.6388,2726.0,2725.9,0.7336]
[1740381657603,5.6388,2726.0,2725.8,0.73362]
[1740381657802,0.5367,2725.9,2725.8,0.73362]
[1740381658003,0.5367,2725.9,2725.7,0.73364]
[1740381658204,1.0913,2725.9,2725.4,0.5389]
[1740381659399,3.2078,2725.6,2725.3,0.56200459]
[1740381659601,5.6358,2725.6,2725.3,0.56200459]
[1740381659800,5.6358,2725.6,2725.3,0.00550459]
[1740381660902,0.05942303,2725.5,2725.3,0.00550459]
[1740381661308,0.5736,2725.4,2725.3,0.00550459]
[1740381663913,0.63300581,2725.4,2725.3,0.00550459]
[1740381666210,0.05940581,2725.4,2725.3,0.00550459]
[1740381666510,0.71076185,2725.5,2725.3,0.00550459]
[1740381666714,2.427,2725.5,2725.3,0.00550459]
[1740381666911,5.6358,2725.6,2725.3,0.00550459]
[1740381672114,5.6328,2725.6,2725.3,0.00550459]
[1740381672508,3.2078,2725.6,2725.3,0.00550459]
[1740381675108,0.71338988,2725.7,2725.3,0.00550459]
[1740381675308,9.88e-06,2725.7,2725.6,3.2078]
[1740381675718,3.2078,2726.2,2725.6,3.2078]
[1740381675919,3.2078,2726.2,2725.6,44.0078]
[1740381676106,3.2078,2726.2,2725.7,1.1093]
[1740381678413,2.42950459,2726.5,2725.7,1.1093]
[1740381678620,0.00550459,2726.5,2725.9,3.2078]
[1740381678816,0.00550459,2726.5,2726.0,0.5808]
[1740381689337,0.00550459,2726.5,2726.0,0.87094721]
[1740381689918,0.00550459,2726.5,2726.0,0.5808]
[1740381690326,0.00550459,2726.5,2726.0,2.9908]
[1740381701534,4.59e-06,2726.5,2726.2,3.2078]
[1740381701741,4.59e-06,2726.5,2726.3,1.0959]
[1740381702037,4.59e-06,2726.5,2726.4,0.5758]
[1740381702930,3.2078,2727.4,2726.4,5.9348]
[1740381703134,4.8536,2728.0,2726.9,3.2078]
[1740381703439,3.2078,2727.7,2727.0,1.0637]
[1740381703635,3.2078,2727.4,2727.0,1.0637]
[1740381704430,3.2078,2727.4,2726.9,3.21330459]
[1740381704630,0.5539,2727.3,2726.9,3.21330459]
[1740381705137,0.5553,2727.2,2726.9,5.04666459]
[1740381705336,0.5553,2727.2,2727.1,0.73329]
[1740381705537,0.5539,2727.3,2727.2,0.73326]
[1740381705934,1.08340459,2727.5,2727.3,0.73323]
[1740381706138,1.08340459,2727.5,2727.1,0.5312]
[1740381706339,1.08340459,2727.5,2727.2,0.5393]
[1740381707642,0.00550459,2727.5,2727.2,0.5393]
[1740381716654,0.00550459,2727.5,2727.2,3.7471]
[1740381716855,0.00550459,2727.5,2727.3,0.5808]
[1740381717948,0.00550459,2727.5,2727.2,0.5393]
[1740381717949,3.2078,2727.4,2727.2,0.5393]
[1740381718168,0.5574,2727.3,2726.9,0.00550459]
[1740381720157,4.2975,2727.4,2726.9,0.00550459]
[1740381720659,4.8824,2727.4,2726.9,0.00550459]
[1740381723861,3.2078,2727.0,2726.9,0.00550459]
[1740381724262,9.2078,2727.0,2726.9,0.00550459]
[1740381724459,9.85009499,2727.0,2726.3,0.551]
[1740381724672,3.2078,2726.7,2726.0,3.7666]
[1740381724868,2.404,2726.6,2726.0,4.3176]
[1740381725271,2.9869,2726.6,2726.0,4.3176]
[1740381725568,2.9869,2726.6,2726.0,4.32310459]
[1740381727563,0.5548,2726.5,2726.0,4.32310459]
[1740381727765,0.5305,2726.4,2726.0,4.32310459]
[1740381730172,0.5548,2726.5,2726.0,4.32310459]
[1740381730763,2.9869,2726.6,2726.0,4.32310459]
[1740381731672,4.1368,2726.6,2726.0,4.32310459]
[1740381732569,1.1656,2726.6,2726.0,4.32310459]
[1740381732870,3.5706,2726.6,2726.0,4.32310459]
[1740381733864,3.2078,2726.3,2726.0,0.00550459]
[1740381734071,3.00165277,2726.2,2725.2,0.5715]
[1740381734265,3.2078,2725.9,2725.2,0.5715]
[1740381734472,1.1129,2726.1,2725.3,3.2078]
[1740381734665,1.1129,2726.1,2725.4,1.113]
[1740381735272,2.405,2726.5,2725.9,3.2078]
[1740381735467,6.7257,2726.6,2726.4,0.73348]
[1740381735768,0.00550459,2726.5,2726.4,0.73348]
[1740381736867,4.59e-06,2726.5,2726.4,0.73348]
[1740381737076,4.59e-06,2726.5,2726.4,9.13848]
[1740381737676,4.59e-06,2726.5,2726.4,3.13848]
[1740381737876,4.59e-06,2726.5,2726.4,43.93848]
[1740381738075,4.59e-06,2726.5,2726.4,49.93848]
[1740381740068,4.59e-06,2726.5,2726.4,43.93848]
[1740381740273,4.59e-06,2726.5,2726.4,41.53348]
[1740381740479,4.59e-06,2726.5,2726.4,43.93848]
[1740381741380,4.59e-06,2726.5,2726.4,41.53348]
[1740381741679,4.59e-06,2726.5,2726.4,3.13848]
[1740381741878,4.59e-06,2726.5,2726.4,0.73348]
[1740381742580,4.59e-06,2726.5,2726.4,1.28598]
[1740381747278,4.59e-06,2726.5,2726.4,0.5525]
[1740381756584,4.59e-06,2726.5,2726.2,3.2078]
[1740381756784,4.59e-06,2726.5,2726.3,0.531]
[1740381757386,4.59e-06,2726.5,2726.2,3.2078]
[1740381761686,4.59e-06,2726.5,2726.0,0.5715]
[1740381761886,3.2078,2726.3,2725.7,0.5738]
[1740381762093,1.1614,2726.2,2725.5,3.21330459]
[1740381762384,0.5825,2726.1,2725.5,3.21330459]
[1740381762593,0.5825,2726.1,2725.6,0.5738]
[1740381762890,0.5825,2726.1,2725.8,3.2078]
[1740381763288,0.5825,2726.1,2725.6,0.5738]
[1740381769591,0.5825,2726.1,2725.5,0.00550459]
[1740381769592,5.6128,2726.0,2725.5,0.00550459]
[1740381772095,3.2078,2726.0,2725.5,0.00550459]
[1740381772396,5.6128,2726.0,2725.5,0.00550459]
[1740381777492,3.2078,2725.6,2724.5,3.2078]
[1740381777699,3.2078,2725.3,2724.5,4.3143]
[1740381778095,3.2078,2725.3,2724.6,1.83491]
[1740381778294,3.2078,2725.3,2725.1,0.7338]
[1740381778600,3.2078,2725.3,2725.2,0.7338]
[1740381779101,1.102,2725.5,2725.4,0.73374]
[1740381783108,1.102,2725.5,2725.2,40.8]
[1740381785603,0.5475,2725.5,2725.1,3.2078]
[1740381785805,0.5475,2725.5,2725.1,3.7887]
[1740381786192,0.5475,2725.5,2725.1,44.5887]
[1740381787105,5.6128,2725.7,2725.1,44.5887]
[1740381787503,0.5378,2725.9,2725.4,3.2078]
[1740381787708,0.5378,2725.9,2725.5,1.12]
[1740381787709,2.405,2725.8,2725.5,1.12]
[1740381788705,0.5378,2725.9,2725.5,1.12]
[1740381789097,0.5378,2725.9,2724.9,0.00550459]
[1740381789098,3.2078,2725.7,2724.9,3.21330459]
[1740381789309,2.46435927,2725.6,2724.9,3.21330459]
[1740381789508,3.2078,2725.4,2724.9,0.00550459]
[1740381789802,1.0995,2725.3,2724.9,0.00550459]
[1740381792703,0.5513,2725.5,2724.9,0.00550459]
[1740381793006,2.9595,2725.6,2725.1,3.2078]
[1740381793205,2.9595,2725.6,2725.2,0.5702]
[1740381793506,2.9595,2725.6,2725.3,0.5528]
[1740381793708,2.405,2725.6,2725.3,0.5528]
[1740381795711,1.6799,2725.7,2725.3,0.5528]
[1740381796008,2.405,2725.8,2725.4,3.2078]
[1740381797511,3.5227,2726.0,2725.4,3.2078]
[1740381797808,3.7519,2726.4,2725.7,3.2078]
[1740381798009,2.405,2726.3,2725.8,1.1253]
[1740381798610,7.2787,2726.4,2725.8,1.1253]
[1740381799907,7.2787,2726.4,2725.7,3.2078]
[1740381800111,3.2078,2726.1,2725.7,3.2078]
[1740381800312,2.405,2726.0,2725.7,3.2078]
[1740381800511,1.1281,2725.9,2725.7,3.2078]
[1740381800711,1.6776,2725.9,2725.7,3.2078]
[1740381804518,3.2078,2725.8,2725.2,0.5565]
[1740381808115,2.405,2725.7,2725.2,0.5565]
[1740381811022,3.2078,2725.5,2725.2,0.5565]
[1740381811426,0.5596,2725.4,2725.2,0.5565]
[1740381812321,1.6981,2725.4,2725.1,0.5414]
[1740381812624,2.405,2725.3,2724.9,0.57310459]
[1740381812825,2.405,2725.3,2724.9,0.00550459]
[1740381813024,3.2078,2725.1,2724.9,0.00550459]
[1740381813423,0.5502,2725.0,2724.9,0.00550459]
[1740381830340,3.2078,2724.3,2722.5,3.2078]
[1740381830534,3.2078,2722.8,2722.2,3.2078]
[1740381830737,3.2078,2722.8,2722.3,1.1436]
[1740381831437,3.2078,2722.5,2722.3,1.1436]
[1740381831739,3.2078,2722.5,2722.4,0.73455]
[1740381832338,3.2078,2722.5,2722.4,41.53455]
[1740381832539,0.00550459,2722.8,2722.4,40.8]
[1740381832737,0.00550459,2722.8,2722.6,0.73449]
[1740381832939,0.00550459,2722.8,2722.7,0.73447]
[1740381835238,0.00550459,2722.8,2722.7,41.53447]
[1740381839943,3.2078,2723.2,2723.1,0.73436]
[1740381841542,3.2078,2723.2,2722.9,0.57690459]
[1740381841746,2.456,2723.1,2722.9,0.73991459]
[1740381842239,2.456,2723.1,2722.9,0.00550459]
[1740381842846,2.456,2723.1,2722.9,0.73991459]
[1740381843444,2.456,2723.1,2723.0,0.73439]
[1740381843842,3.2078,2723.2,2723.1,0.73436]
[1740381844648,3.2078,2723.2,2723.1,1.29976]
[1740381845344,3.2078,2723.2,2723.1,0.5654]
[1740381849749,0.00550459,2723.4,2723.1,0.5654]
[1740381855556,4.59e-06,2723.4,2723.1,0.5654]
[1740381856360,4.59e-06,2723.4,2723.3,3.2078]
[1740381856558,4.59e-06,2723.4,2723.3,5.6488]
[1740381856864,4.59e-06,2723.4,2723.3,11.6488]
[1740381857862,4.59e-06,2723.4,2723.3,52.4488]
[1740381867176,4.59e-06,2723.4,2723.3,49.241]
[1740381867375,4.59e-06,2723.4,2723.3,52.4488]
[1740381868474,4.59e-06,2723.4,2723.3,44.0078]
[1740381868771,4.59e-06,2723.4,2723.3,5.6368]
[1740381870478,4.59e-06,2723.4,2723.3,46.4368]
[1740381882186,4.59e-06,2724.0,2723.3,46.4368]
[1740381882393,1.1272,2724.1,2723.9,3.2078]
[1740381882697,1.1272,2724.1,2723.9,5.6238]
[1740381882891,0.37237,2724.1,2723.9,5.6238]
[1740381883096,0.37237,2724.1,2723.9,5.86119567]
[1740381884694,0.00550459,2724.3,2723.9,5.86119567]
[1740381884908,0.00550459,2724.3,2724.2,3.2078]
[1740381885891,4.59e-06,2724.3,2724.2,3.2078]
[1740381890302,4.59e-06,2724.3,2724.2,44.0078]
[1740381890497,4.59e-06,2724.3,2724.2,46.4178]
[1740381891794,4.59e-06,2724.3,2724.2,5.6188]
[1740381892697,4.59e-06,2724.3,2724.2,3.2078]
[1740381896000,4.59e-06,2724.3,2723.9,3.2078]
[1740381896202,3.20780459,2724.3,2723.6,3.2078]
[1740381896402,3.2078,2724.0,2723.3,5.6168]
[1740381896600,3.2078,2724.0,2723.4,40.8]
[1740381896601,0.4391,2723.9,2723.4,40.8]
[1740381897199,0.4391,2723.9,2723.5,0.73426]
[1740381897405,0.4391,2723.9,2723.8,0.73418]
[1740381899106,0.4391,2723.9,2723.4,40.8]
[1740381903804,3.2078,2723.7,2723.0,4.3318]
[1740381904107,1.1364,2723.6,2723.0,4.3318]
[1740381904309,1.1364,2723.6,2723.0,1.124]
[1740381904510,1.1364,2723.6,2723.0,0.5567]
[1740381905807,1.1364,2723.6,2723.0,3.7645]
[1740381906012,0.5615,2723.6,2723.0,6.1715]
[1740381906511,0.5615,2723.6,2723.3,3.2078]
[1740381906711,3.2078,2723.7,2723.4,0.5422]
[1740381906929,3.2078,2723.7,2723.5,0.5602]
[1740381908616,0.5814,2724.1,2723.5,0.5602]
[1740381908810,2.9884,2724.1,2723.5,0.5602]
[1740381909921,1.0146,2724.2,2723.9,3.2078]
[1740381910110,4.59e-06,2724.3,2724.0,4.24231]
[1740381910311,0.5761,2724.7,2724.6,0.73396]
[1740381910516,0.5385,2725.1,2725.0,0.73385]
[1740381910822,1.1146,2725.1,2725.0,0.73385]
[1740381911314,1.1146,2725.1,2724.7,0.5599]
[1740381911516,1.1146,2725.1,2725.0,0.73385]
[1740381914427,3.6475,2725.2,2724.8,0.00550459]
[1740381914620,3.2078,2725.2,2725.1,0.73382]
[1740381918222,3.2078,2725.2,2725.0,2.407]
[1740381918418,3.2078,2725.2,2724.8,0.00550459]
[1740381918824,0.4386,2725.1,2724.8,0.00550459]
[1740381919025,0.5326,2725.0,2724.8,0.00550459]
[1740381920221,3.485,2725.0,2724.8,0.00550459]
[1740381923124,3.2078,2724.9,2724.8,0.00550459]
[1740381923525,9.2078,2724.9,2724.0,0.5429]
[1740381923716,3.485,2725.0,2724.0,0.5429]
[1740381923717,3.2078,2724.5,2724.0,0.5429]
[1740381923923,3.2078,2724.5,2724.0,41.3429]
[1740381924226,3.2078,2724.2,2724.0,0.5429]
[1740381924430,3.2078,2724.2,2723.9,0.5739]
[1740381925228,3.2078,2724.2,2724.0,0.73412]
[1740381925427,3.2078,2724.2,2724.1,0.73409]
[1740381928229,3.2078,2724.2,2723.9,0.5739]
[1740381928631,6.0537,2724.5,2723.9,0.5739]
[1740381929127,5.6148,2724.5,2723.9,0.5739]
[1740381931828,3.2078,2724.9,2724.1,3.2078]
[1740381932027,5.6148,2724.9,2724.2,0.5682]
[1740381932333,3.2078,2724.9,2724.2,1.1292]
[1740381935737,3.4006,2725.2,2724.4,3.2078]
[1740381935933,3.4006,2725.2,2724.5,0.5816]
[1740381936234,5.62030459,2725.3,2724.7,3.2078]
[1740381936535,5.62030459,2725.3,2724.8,0.53]
[1740381936736,3.21330459,2725.3,2724.8,0.53]
[1740381937337,3.21330459,2725.3,2724.8,1.087]
[1740381941034,3.21330459,2725.3,2724.8,3.493]
[1740381943439,3.21330459,2725.3,2724.8,0.53]
[1740381945240,1.5206,2725.2,2724.8,0.53]
[1740381945541,3.2078,2725.0,2724.5,0.5816]
[1740381945735,3.2078,2725.0,2724.6,0.5832]
[1740381953854,1.082,2725.2,2724.6,3.791]
[1740381954146,1.082,2725.2,2724.7,0.5774]
[1740381959049,1.5207,2725.2,2724.7,0.5774]
[1740381959249,1.5207,2725.2,2724.6,3.791]
[1740381959555,3.2078,2724.9,2724.5,0.5816]
[1740381960660,3.2078,2724.6,2723.9,3.2078]
[1740381960860,1.577,2724.5,2723.9,3.7813]
[1740381961164,3.2078,2724.0,2723.8,0.00550459]
[1740381962163,3.2078,2724.0,2723.9,0.73415]
[1740381963656,3.99174396,2724.4,2724.3,0.73404]
[1740381964460,3.2078,2724.4,2724.3,0.73404]
[1740381967259,3.2078,2724.4,2724.1,0.5796]
[1740381969666,1.5634,2725.2,2724.1,3.7874]
[1740381969667,3.2078,2724.7,2724.1,3.7874]
[1740381969865,2.406,2725.0,2724.1,3.7874]
[1740381970257,2.406,2725.0,2724.4,3.2078]
[1740381970563,3.2078,2725.2,2724.5,1.1357]
[1740381972866,0.00550459,2725.3,2724.8,3.2078]
[1740381973067,0.00550459,2725.3,2724.9,0.5683]
[1740381973369,0.00550459,2725.3,2725.0,0.5687]
[1740381973559,0.00550459,2725.3,2725.0,1.1292]
[1740381974163,4.59e-06,2725.3,2725.2,0.7338]
[1740381976965,4.59e-06,2725.3,2725.2,41.5338]
[1740381978768,4.59e-06,2725.3,2725.2,47.5338]
[1740381979271,4.59e-06,2725.3,2725.2,46.8]
[1740381981669,4.59e-06,2725.3,2725.2,6.0]
[1740381981871,4.59e-06,2725.3,2725.1,3.2078]
[1740381982070,4.59e-06,2725.3,2725.1,44.0078]
[1740381982568,4.59e-06,2725.3,2725.1,9.2078]
[1740381982874,4.59e-06,2725.3,2725.1,3.2078]
[1740381986084,4.59e-06,2725.3,2725.1,5.79464024]
[1740381988482,3.2078,2726.1,2725.1,9.2078]
[1740381988673,0.5315,2726.2,2725.6,3.2078]
[1740381988979,0.5315,2726.2,2725.7,1.6866]
[1740381989575,0.53700459,2726.2,2725.7,1.6866]
[1740381989780,3.74480459,2726.2,2725.7,1.11390459]
[1740381991781,0.53700459,2726.2,2725.7,1.11390459]
[1740381992381,0.00550459,2726.2,2725.7,1.11390459]
[1740381996988,0.00550459,2726.2,2725.9,3.2078]
[1740381997187,0.00550459,2726.2,2725.9,5.6118]
[1740381998289,0.00550459,2726.2,2725.9,3.2078]
[1740381998588,0.00550459,2726.2,2725.9,5.6118]
[1740382005490,3.21330459,2726.2,2725.7,0.57800459]
[1740382005692,1.5765,2726.1,2725.7,0.00550459]
[1740382009693,2.36222578,2726.1,2725.7,0.00550459]
[1740382011595,3.2078,2725.9,2725.7,0.00550459]
[1740382012593,2.404,2725.8,2725.7,0.00550459]
[1740382014896,3.18916066,2725.8,2725.7,0.00550459]
[1740382016896,2.404,2725.8,2725.7,0.00550459]
[1740382018998,3.18859486,2725.8,2725.7,0.00550459]
[1740382020391,2.404,2725.8,2725.7,0.00550459]
[1740382020698,3.2078,2725.9,2725.7,0.00550459]
[1740382020899,2.40950459,2726.2,2725.7,0.00550459]
[1740382021289,0.00550459,2726.2,2725.7,3.21330459]
[1740382021689,0.00550459,2726.2,2726.0,3.2078]
[1740382021895,0.00550459,2726.2,2726.1,1.6688]
[1740382022198,0.00550459,2726.2,2726.1,2.40236]
[1740382022399,0.00550459,2726.2,2726.1,43.20236]
[1740382022795,0.00550459,2726.2,2726.1,45.60636]
[1740382023794,0.00550459,2726.2,2726.1,0.5675]
[1740382023989,0.00550459,2726.2,2725.7,0.00550459]
[1740382024294,3.2078,2726.1,2725.7,0.73915459]
[1740382024501,1.079,2726.0,2725.8,0.73363]
[1740382024806,1.86314358,2726.0,2725.8,0.73363]
[1740382025502,1.86314358,2726.0,2725.9,0.73361]
[1740382026795,0.78414358,2726.0,2725.9,0.73361]
[1740382027002,3.99194358,2726.1,2726.0,0.73358]
[1740382027597,0.78414358,2726.1,2726.0,0.73358]
[1740382028102,0.78964817,2726.2,2726.1,0.73356]
[1740382028303,0.00550459,2726.2,2726.1,0.73356]
[1740382028505,0.00550459,2726.2,2726.1,1.27126]
[1740382028802,0.00550459,2726.2,2726.1,1.84966]
[1740382029203,0.00550459,2726.2,2726.1,1.1161]
[1740382031902,0.00550459,2726.2,2726.1,4.3239]
[1740382032793,0.00550459,2726.2,2726.1,1.1161]
[1740382034801,0.784794,2726.7,2726.1,1.1161]
[1740382035009,0.784794,2726.7,2726.2,3.2078]
[1740382035402,3.188794,2726.9,2726.2,3.2078]
[1740382036101,0.00550459,2726.8,2726.2,3.2078]
[1740382039304,0.00550459,2726.8,2726.2,5.6108]
[1740382039611,3.2078,2726.7,2726.1,1.1161]
[1740382039812,3.2078,2726.7,2726.1,4.3239]
[1740382040007,3.2078,2726.7,2726.1,1.1161]
[1740382040413,3.2078,2726.7,2726.1,4.3239]
[1740382055132,0.00550459,2726.8,2726.4,3.2078]
[1740382055335,0.00550459,2726.8,2726.5,0.5523]
[1740382055537,0.00550459,2726.8,2726.6,0.5821]
[1740382055837,0.00550459,2726.8,2726.6,1.1184]
[1740382061144,0.00550459,2726.8,2726.6,0.5821]
[1740382061645,0.44900459,2726.8,2726.6,0.5821]
[1740382061943,0.5412,2726.7,2726.6,0.5821]
[1740382062342,0.5412,2726.7,2726.1,1.1203]
[1740382062545,3.2078,2726.6,2726.2,0.582]
[1740382063047,3.99384844,2726.6,2726.2,0.582]
[1740382063235,3.2078,2726.3,2726.2,0.582]
[1740382063636,3.2078,2726.3,2725.8,0.554]
[1740382063945,3.2078,2726.3,2725.8,1.6877]
[1740382064144,0.5412,2726.2,2725.8,1.6877]
[1740382065036,1.0807,2726.2,2725.8,1.6877]
[1740382065437,1.86674844,2726.2,2725.8,1.6877]
[1740382065841,1.32724844,2726.2,2725.8,1.6877]
[1740382069949,3.73024844,2726.2,2725.8,1.6877]
[1740382071847,3.18904844,2726.2,2725.8,1.6877]
[1740382072951,3.2078,2726.3,2725.8,1.6877]
[1740382073248,3.2078,2726.3,2725.8,1.1337]
[1740382073446,3.6517,2726.3,2725.8,1.1337]
[1740382074053,4.43725221,2726.3,2725.8,1.1337]
[1740382074248,3.2078,2725.9,2725.8,0.582]
[1740382074444,3.2078,2725.9,2725.7,0.00550459]
[1740382075452,0.5699,2725.8,2725.7,0.00550459]
[1740382076045,3.2078,2725.9,2725.7,0.00550459]
[1740382076244,3.7777,2725.9,2725.7,0.00550459]
[1740382079851,3.2078,2726.2,2725.7,0.00550459]
[1740382080354,3.2078,2726.2,2725.8,40.8]
[1740382080553,3.2078,2726.2,2725.9,1.1466]
[1740382080757,3.2078,2726.2,2726.0,0.5337]
[1740382083251,2.403,2726.4,2726.0,0.5337]
[1740382084359,5.6108,2726.5,2726.0,0.5337]
[1740382084556,3.2078,2726.5,2726.0,0.5337]
[1740382084851,0.78475966,2726.6,2726.0,0.5337]
[1740382085255,4.19925966,2726.7,2726.0,0.5337]
[1740382086057,4.76925966,2726.7,2726.0,0.5337]
[1740382086559,0.78475966,2726.6,2726.0,0.5337]
[1740382087156,3.2078,2726.4,2726.0,0.5337]
[1740382089057,0.4439,2726.3,2726.0,0.5337]
[1740382089262,0.5638,2726.2,2726.0,0.5337]
[1740382091158,3.2078,2726.1,2725.7,0.00550459]
[1740382091554,3.2078,2726.1,2725.7,0.57780459]
[1740382091957,3.99255966,2726.1,2725.7,0.57780459]
[1740382094849,0.78475966,2726.1,2725.7,0.57780459]
[1740382095158,3.18675966,2726.1,2725.8,0.5388]
[1740382095359,2.402,2726.1,2725.8,0.5388]
[1740382095562,2.402,2726.1,2725.9,40.8]
[1740382095953,2.402,2726.1,2725.8,0.5388]
[1740382096153,5.6098,2726.1,2725.8,0.5388]
[1740382096355,5.6098,2726.1,2725.8,41.3388]
[1740382096753,5.6098,2726.1,2725.8,0.5388]
[1740382098461,3.5508,2726.2,2725.8,0.5388]
[1740382098660,4.3374669,2726.2,2725.8,0.5388]
[1740382099961,0.7866669,2726.2,2725.8,0.5388]
[1740382100159,0.7866669,2726.2,2725.8,3.7466]
[1740382100461,3.2078,2726.2,2725.7,0.57780459]
[1740382100662,0.5611,2726.1,2725.7,0.57780459]
[1740382100857,1.5672,2726.1,2725.7,0.57780459]